{"text_format":"1","workbook":"xlsx","n_sheets":3,"sheets":["Sheet1","Sheet2","Sheet3"],"not_rendered":{"charts":0,"images":53,"macros":1,"external_links":0,"defined_names":0,"comments":0,"pivot_tables":0},"unopened":[],"bounds":{"document_bytes":16777216,"sheet_cells":100000,"rows_first":2000,"rows_last":500,"rows_between":2000,"halvings":0,"cell_chars":16384,"cell_head_chars":4096},"cells_cut":0,"cells_raw":0,"read":"whole","date_system":"1900"}

{"sheet":"Sheet1","index":0,"n_rows":57,"n_cols":11,"rows_kept":57,"cut":false,"hidden":false,"merged":[[71,2,71,3],[41,1,41,8],[20,1,20,7],[7,1,7,7]]}
["ا / ناصر عبد الباري","الصف الأول الإعدادي"]
[]
[]
[]
[]
[]
["أولا : القصة من ( عقبة بن نافع )"]
[null,"« اتجه عقبة كعادته إلى الله ، وصلى ركعتين ، وسأل الله أن يخرجه من هذه المحنة ، وما كاد يفرغ من الصلاة حتى لمح فرسه ينبش الأرض بحثـًا عن الماء ، وحدث المعجزة » ."]
[]
["1ـــ  المقصود ( بالمحنة ) هنا ",null,null,"فتح مدينة ( خاوار )",null,"عزل عقبة",null,"العطش و عدم وجد الماء",null,false,{"$f":"IF(J10,1,0)","v":0}]
["جمع ( المحنة )",null,null,"المحن",null,"المحون",null,"ماحنات",null,false,{"$f":"IF(J11,1,0)","v":0}]
["مضاد ( يفرغ )",null,null,"ينتهي",null,"يبدأ",null,"يملأ",null,false,0]
[" 2- المعجزة هي ......",null,null,"خروج البربر للجهاد",null,"فتح مدينة خاوار",null,"انبثاق الماء",null,false,0]
["3- اختر :"]
["*ــ لم تتكرر هذه المعجزة . ",null,null,"صح ",null,"خطأ",null,null,null,false,{"$f":"IF(J15,1,0)","v":0}]
["* ــ لم تهتم البربر بهذه المعجزة .",null,null,"صح ",null,"خطأ",null,null,null,false,{"$f":"IF(J16,1,0)","v":0}]
["* ــ دخل عقبة هذه المدينة ليلا وأهلها مستغرقون في النوم   .",null,null,"صح ",null,"خطأ",null,null,null,false,0]
["* ــ سمي هذا المكان القيروان .",null,null,"صح ",null,"خطأ",null,null,null,false,0]
[]
["من موضوع   الكنز قبل أن يضيع  :"]
[null,"« اعتمد الرافعي في تكوين ثقافته على مكتبته الخاصة ، ومكتبة أبيه فيما بعد ، وكانت زاخرة بنفائس الكتب في الدين واللغة ، فأصاب الكثير من معين المعرفة الصحيحة » ."]
[" ا   -  هات من الفقرة ","* كلمة مرادفها ( مصدر ومنبع)",null,null,null,null,null,null,null,null,{"$f":"IF(E22=\"معين\",1,0)","v":0}]
[null,"كلمة مضادها ( فارغة )",null,null,null,null,null,null,null,null,{"$f":"IF(OR(E23=\"زاخرة\",E23=\"زاخره\"),1,0)","v":0}]
["ب - هات مفرد ( نفائس ) ",null,null,null,null,null,null,null,null,null,{"$f":"IF(OR(B24=\"نفيسة\",B24=\"نفيسه\"),1,0)","v":0}]
["ج / علام اعتمد الرافعي في تكون ثقافته ؟ ",null,"على نفسه وأبيه",null,"على مكتبته ومكتبت أبيه",null,"على القراءة وكتابة النثر",null,null,false,{"$f":"IF(J25,1,0)","v":0}]
["د / اتجه الرافعي للنثر بعد الشعر ",null,"لعدم كفاءته",null,"بسبب صممه ",null,"لأنه أطوع من الشعر ",null,null,false,{"$f":"IF(J26,1,0)","v":0}]
[]
["ثانيا النصوص"]
["من نص \"نحن الكشافة \""]
[null,"نحن الكشافة في الوادي",null,"جبريل الروح لنا حادي"]
[null,"يا رب بعيسى والهادي",null,"وبموسى خذ بيد الوطن"]
["ا   - أكمل "]
[null,"مفرد ( نحن )",null,null,null,null,null,null,null,null,{"$f":"IF(OR(C33=\"أنا \",C33=\"انا\"),1,0)","v":0}]
[null,"جمع \" الروح \"",null,null,null,null,null,null,null,null,{"$f":"IF(OR(C34=\"الأرواح\",C34=\"الارواح\"),1,0)","v":0}]
[null,"يا رب / أسلوب ....",null,null,null,null,null,null,null,null,{"$f":"IF(C35=\"نداء\",1,0)","v":0}]
["الشاعر هو.......",null,null,null,null,null,null,null,null,null,{"$f":"IF(OR(B36=\"أحمد شوقي\",B36=\"احمد شوقي\"),1,0)","v":0}]
["الهادي هو .......",null,null,null,null,null,null,null,null,null,{"$f":"IF(OR(B37=\"محمد \",B37=\"سيدنا محمد\"),1,0)","v":0}]
["خذ بيد الوطني ","أسلوب","نفي","نهي","أمر للدعاء",null,null,null,null,false,{"$f":"IF(J38,1,0)","v":0}]
["جبريل لنا حادي","تعبيريفيد","التواضع","التعظيم","الغرور بالنفس",null,null,null,null,false,{"$f":"IF(J39,1,0)","v":0}]
[]
["ثالثا: القواعد:-"]
[null," قال أحـد الأدبـاء لبعض زمـلائه : ألا تعجـبون لفـلانٍ هذا الذي صار صديقـًا للناس جميعـًا ؟! فخال أحد الزملاء الأديب معلما لهم أمرا فقال : أخشى ألا يكون صديقـًا لأحد ، لأن رضا الناس جميعًا شـيء لا يُـنـال "]
["ا- اختر الإعراب الصحيح لما تحته خط "]
[null,"أحد ","حال منصوب",null,"فاعل مرفوع",null,"مفعول به منصوب",null,null,false,{"$f":"IF(J44,1,0)","v":0}]
[null,"صديقا","خبر صار منصوب",null,"مفعول به منصوب",null,"اسم صار منصوب ",null,null,false,{"$f":"IF(J45,1,0)","v":0}]
[null,"شيء","خبر مرفوع",null,"خبرأن مرفوع",null,"مضاف إليه مجرور",null,null,false,0]
["ج- استخرج "]
[null,"فعلا ناقصا ",null,null,null,null,null,null,null,null,{"$f":"IF(C48=\"أخشى\",1,0)","v":0}]
[null,"فعلا صحيحا ",null,null,null,null,null,null,null,null,{"$f":"IF(C49=\"تعجبون\",1,0)","v":0}]
[null,"فعلا مبنيا للمجهول ",null,null,null,null,null,null,null,null,{"$f":"IF(C50=\"ينال\",1,0)","v":0}]
[null,"مفعول به ثان",null,null,null,null,null,null,null,null,{"$f":"IF(C51=\"معلما\",1,0)","v":0}]
["د- تخير الصواب","نال المسلم رضى الله ","عند بنائها للمجهول ",null,"نال رضى الله","نيل المسلم",null,"نيل رضى الله ",null,false,{"$f":"IF(J52,1,0)","v":0}]
[null,"\" زعم\" فعل ",null,null,"  لليقين","للتحويل",null,"للرجحان",null,false,{"$f":"IF(J53,1,0)","v":0}]
["ه / ضع أداة شرط للعاقل","\" يغزو في سبيل الله – يرتقي الدرجات العلا \" ",null,null,"من","إن",null,"ما",null,false,0]
[]
[]
["اسم الطالب",null,"الدرجة",null,"من 30",null,"التقدير",{"$f":"IF(D57>=28,\"ممتاز\",IF(D57>=25,\"جيد جدا\",IF(D57>=20,\"جيد\",IF(D57>=15,\"مقبول\",\"راسب\"))))","v":"راسب"}]

{"sheet":"Sheet2","index":1,"n_rows":0,"n_cols":0,"rows_kept":0,"cut":false,"hidden":false,"merged":[]}

{"sheet":"Sheet3","index":2,"n_rows":0,"n_cols":0,"rows_kept":0,"cut":false,"hidden":false,"merged":[]}